Cogmind - Beta 12 @@@ ROGUE MODE // 2024.02.09 @ 07:02:14 Player: Eddie Result: Destroyed by as-87538 with Assembled Rifle Performance ------------- Evolutions (0) 0 Regions Visited (2) 400 Robots Destroyed (19) 95 Value Destroyed (345) 345 Prototype IDs (2) 40 Alien Tech Used (0) 0 Bonus (0) 0 TOTAL SCORE: 880 Bonus ------- None Cogmind --------- Core Integrity 0/250 Matter 186/300 Energy 84/100 System Corruption 0% Temperature Cool (2) Movement Hovering (56) Location -10/Mines Parts ------- > --- POWER (1) -------- (None) > --- PROPULSION (2) --- Improved Hover Unit Improved Hover Unit > --- UTILITY (2) ------ Medium Storage Unit Signal Interpreter > --- WEAPON (2) ------- (None) > --- INVENTORY (10) --- Ion Engine Aluminum Leg Aluminum Leg Improved Hover Unit Improved Hover Unit Shield Generator Datajack Mining Laser Peak State ------------ > --- POWER ------------ Ion Engine > --- PROPULSION ------- Aluminum Leg Aluminum Leg > --- UTILITY ---------- Medium Storage Unit Signal Interpreter > --- WEAPON ----------- Shotgun Shotgun > --- INVENTORY -------- Ion Engine Aluminum Leg Aluminum Leg Improved Hover Unit Improved Hover Unit Improved Hover Unit Improved Hover Unit Shield Generator Shotgun [Rating: 10] Favorites ----------- Power Ion Engine Engine Ion Engine Propulsion Aluminum Leg Leg Aluminum Leg Hover Unit Improved Hover Unit Utility Medium Storage Unit Storage Medium Storage Unit Processor Signal Interpreter Weapon Shotgun Energy Gun EM Pulse Gun Ballistic Gun Shotgun Build | -11 -10 -10 ------- Run | Jun Mat Min Slots Evolved . | . . . Power . | . . . Propulsion . | . . . Utility . | . . . Weapon . | . . . Parts Attached 19 | 5 12 2 Power 2 | 1 1 . Engine 2 | 1 1 . Core . | . . . Reactor . | . . . Propulsion 8 | 2 4 2 Treads . | . . . Leg 6 | 2 4 . Wheel . | . . . Hover 2 | . . 2 Flight . | . . . Utility 3 | 1 2 . Device . | . . . Storage 2 | 1 1 . Processor 1 | . 1 . Hackware . | . . . Protection . | . . . Artifact . | . . . Weapon 6 | 1 5 . Energy Gun 2 | 1 1 . Energy Cannon . | . . . Ballistic Gun 4 | . 4 . Ballistic Cannon . | . . . Launcher . | . . . Special Weapon . | . . . Impact Weapon . | . . . Slashing Weapon . | . . . Piercing Weapon . | . . . Special Melee Weapon . | . . . Unidentified Prototypes . | . . . Parts Lost 5 | . . 5 Power 1 | . . 1 Propulsion 2 | . . 2 Utility . | . . . Weapon 2 | . . 2 Highest Loss Streak 5 | . . 5 To Critical Strikes . | . . . Average Slot Usage (%) 96 | . 97 89 Engine 13 | . 14 10 Leg 27 | . 27 22 Storage 14 | . 14 14 Processor 12 | . 12 14 Energy Gun 2 | . 3 . Ballistic Gun 23 | . 23 22 Naked Turns . | . . . Heaviest Build 22 | 12 22 21 Greatest Support 20 | 20 20 20 Greatest Overweight (x) 5 | . 5 1 Average Overweight (x) . | . . . Largest Inventory Capacity 10 | 8 10 10 Average Capacity 9 | 7 9 10 Most Carried 10 | 5 10 10 Average Carried 9 | 3 9 9 Final Capacity 10 | 8 10 10 Final Carried 10 | 5 10 8 Class Distribution -------------------- 100% | Mutant Dominant Class ---------------- Mutant | -10/Materials Mutant | -10/Mines Resources | -11 -10 -10 ----------- Run | Jun Mat Min Matter Collected 540 | 242 228 70 Remotely . | . . . Salvage Created 559 | . 456 103 Parts 34 | . 31 3 Haulers Intercepted 2 | . 2 . Recyclers Shooed . | . . . Parts Field Recycled . | . . . Retrieved Matter . | . . . Parts Self-Destructed . | . . . Prevented . | . . . Kills | -11 -10 -10 ------- Run | Jun Mat Min Combat Hostiles Destroyed 15 | . 10 5 Guns 14 | . 9 5 AOE 1 | . 1 . Classes Destroyed 6 | . 5 1 Hauler 2 | . 2 . Recycler 2 | . 2 . Watcher 2 | . 2 . Swarmer 7 | . 6 1 Grunt 6 | . 4 2 Assembled 2 | . . 2 Best Kill Streak 4 | . 4 2 Combat Bots Only 3 | . 3 2 Max Kills in Single Turn 2 | . 2 2 Gunslinging . | . . . Exploded 1 | . 1 . Melee . | . . . Uniques/NPCs Destroyed . | . . . Combat | -11 -10 -10 -------- Run | Jun Mat Min Damage Taken 902 | . 300 602 Core 257 | . 41 216 Absorbed by Shields . | . . . Core Remaining (%) 100 | 100 . . Volleys Fired 45 | . 32 13 Largest 2 | . 2 2 Hottest 63 | . 63 46 Shots Fired 85 | . 63 22 Gun 85 | . 63 22 Cannon . | . . . Launcher . | . . . Special . | . . . Kinetic 75 | . 53 22 Thermal . | . . . Explosive . | . . . Electromagnetic 10 | . 10 . Robot Hit Streak 8 | . 8 5 Robot Miss Streak 5 | . 4 5 Penetration Max . | . . . Secondary Targets 1 | . . 1 Max Gunslinging Chain 1 | . . 1 Shots Hit Robots 67 | . 48 19 Core Hits 32 | . 24 8 Critical Kills . | . . . Critical Parts Destroyed . | . . . Critical Strikes . | . . . Melee Attacks . | . . . Impact . | . . . Slashing . | . . . Piercing . | . . . Sneak Attacks . | . . . Combat Hostiles . | . . . Follow-up Attacks . | . . . Damage Inflicted 1051 | . 806 245 Guns 938 | . 693 245 Cannons . | . . . Explosions 103 | . 103 . Melee . | . . . Ramming 10 | . 10 . Kinetic 791 | . 546 245 Thermal 103 | . 103 . Explosive . | . . . Electromagnetic 147 | . 147 . Impact . | . . . Slashing . | . . . Piercing . | . . . Highest Corruption . | . . . Average Corruption . | . . . Corruption Purged . | . . . Corruption Blocked . | . . . Overload Shots . | . . . Overflow Damage . | . . . Projectiles . | . . . Explosions . | . . . Melee . | . . . Knockbacks . | . . . Impact . | . . . Kinetic . | . . . Secondary . | . . . Self-Inflicted Damage 38 | . 38 . Shots 1 | . 1 . Rammed . | . . . Targets Rammed 5 | . 5 . Kicked 5 | . 5 . Crushed . | . . . Highest Temperature 33 | . 33 26 Average Temperature 11 | . 12 8 Received Heat Transfer 258 | . 60 198 Siege Activations . | . . . Robots Corrupted . | . . . Combat Hostiles . | . . . Parts Fried . | . . . Impact Corruptions . | . . . Robots Melted . | . . . Combat Hostiles . | . . . Parts Melted . | . . . Heat Transferred 50 | . 50 . Parts Sabotaged . | . . . Parts Stolen . | . . . Parts Stripped . | . . . Power Chain Reactions 2 | . 2 . Missiles Intercepted . | . . . Alert | -11 -10 -10 ------- Run | Jun Mat Min Peak Influence 208 | . 208 97 Initial 27 | . . 27 Average 49 | . 51 64 Maximum Alert Level 1 | . 1 . Low Security (%) 97 | 100 96 100 Level 1 2 | . 3 . Level 2 . | . . . Level 3 . | . . . Level 4 . | . . . Level 5 . | . . . High Security . | . . . Max Security . | . . . Squads Dispatched 2 | . 2 . Investigation 1 | . 1 . Extermination . | . . . Reinforcement 1 | . 1 . Assault . | . . . Garrison . | . . . Intercept . | . . . Searches Triggered . | . . . Construction Impeded . | . . . Haulers Reinforced . | . . . Active Scanning Responses . | . . . Cargo Convoy Interrupts . | . . . Stealth | -11 -10 -10 --------- Run | Jun Mat Min Distress Signals 1 | . 1 . Communications Jammed . | . . . Distress Signals . | . . . Times Spotted 31 | . 16 15 Peak Tracking Total 6 | . 3 6 Tactical Retreats 1 | . . 1 Traps | -11 -10 -10 ------- Run | Jun Mat Min Traps Triggered 2 | . 2 . Indirectly . | . . . Trap Hack Attempts . | . . . Triggered . | . . . Disarmed . | . . . Reprogrammed . | . . . Reused . | . . . Traps Extracted . | . . . Installed . | . . . Triggered . | . . . Machines | -11 -10 -10 ---------- Run | Jun Mat Min Machines Disabled 1 | . 1 . Max in Single Turn 1 | . 1 . Machines Repaired . | . . . Machines Sabotaged . | . . . Overloaded Fab Kills . | . . . Hacking | -11 -10 -10 --------- Run | Jun Mat Min Machines Accessed 8 | . 8 . Terminals 7 | . 7 . Fabricators . | . . . Repair Stations 1 | . 1 . Recycling Units . | . . . Scanalyzers . | . . . Garrison Access . | . . . Total Hacks 21 | . 21 . Successful 10 | . 10 . Failed 11 | . 11 . Catastrophic 3 | . 3 . Database Lockouts . | . . . Manual 18 | . 18 . Terminals 19 | . 19 . Fabricators . | . . . Repair Stations 2 | . 2 . Recycling Units . | . . . Scanalyzers . | . . . Garrison Access . | . . . Terminal Hacks 4 | . 4 . Prototype ID Bank 1 | . 1 . Terminal Index 1 | . 1 . Hauler Manifests 1 | . 1 . Registered Components 1 | . 1 . Fabricator Hacks . | . . . Repair Station Hacks 1 | . 1 . Scan Component 1 | . 1 . Recycling Unit Hacks . | . . . Scanalyzer . | . . . Garrison Access Hacks . | . . . Unauthorized Hacks 5 | . 5 . Terminals 5 | . 5 . Botnet 5 | . 5 . Fabricators . | . . . Repair Stations . | . . . Recycling Units . | . . . Scanalyzers . | . . . Garrison Access . | . . . Data Cores Recovered . | . . . Used . | . . . Hacking Detections 8 | . 8 . Full Trace Events 1 | . 1 . Feedback Events . | . . . Feedback Blocked . | . . . Robot Schematics Acquired . | . . . Robots Built . | . . . Authchips . | . . . Time . | . . . Total Robot Build Rating . | . . . Part Schematics Acquired . | . . . Parts Built . | . . . Authchips . | . . . Time . | . . . Total Part Build Rating . | . . . Parts Repaired . | . . . Time . | . . . Parts Recycled . | . . . Recycled Matter . | . . . Retrieved Matter . | . . . Retrieved Components . | . . . Parts Scanalyzed . | . . . Part Schematics Acquired . | . . . Parts Damaged . | . . . Bothacking | -11 -10 -10 ------------ Run | Jun Mat Min Used RIF Installer . | . . . Robots Hacked . | . . . Non-combat . | . . . Combat . | . . . Robot Hacks Applied . | . . . Relay Couplers Released . | . . . Fabnet Peak Effective % . | . . . Robots Rewired . | . . . Allies Hacked . | . . . Hacks Repelled . | . . . Allies | -11 -10 -10 -------- Run | Jun Mat Min Total Allies . | . . . Largest Group . | . . . Highest-Rated Group . | . . . Highest-Rated Ally . | . . . Total Orders . | . . . Ally Attacks . | . . . Total Damage . | . . . Kills . | . . . Allies Corrupted . | . . . Allies Melted . | . . . Intel | -11 -10 -10 ------- Run | Jun Mat Min Robot Analysis Total . | . . . Derelict Logs Recovered . | . . . Drone Launches . | . . . Drone Recoveries . | . . . Exploration | -11 -10 -10 ------------- Run | Jun Mat Min Turns Passed 1230 | 78 1039 113 Spaces Moved 617 | 59 503 55 Core 8 | 7 1 . Treads . | . . . Legs 584 | 52 502 30 Wheels . | . . . Hover 25 | . . 25 Flight . | . . . Fastest Speed 50 | 50 120 56 Average Speed 161 | 111 171 125 Slowest Speed 300 | 120 300 190 Overloaded Moves . | . . . Propulsion Burnouts . | . . . Robots Hopped . | . . . Cave-ins Triggered . | . . . Exploration Rate (%) 31 | 4 67 22 Regions Visited 2 Branch Regions 1 Pre-discovered Areas . | . . . Known Exits Taken 1 | . 1 . Unknown Exits Taken 1 | 1 . . Scrap Searched . | . . . Spaces Dug . | . . . Terrain Destroyed 6 | . 6 . Melee . | . . . Projectile . | . . . AOE 6 | . 6 . Terrain Rammed . | . . . Walls Destroyed . | . . . Machines Disabled . | . . . Actions | -11 -10 -10 --------- Run | Jun Mat Min Total 761 | 69 615 77 Wait 49 | . 42 7 Move 615 | 58 502 55 Hop . | . . . Pick Up 18 | 6 12 . Fast Attach 12 | 4 8 . Attach 5 | 1 2 2 Detach . | . . . Swap 2 | . 2 . Drop 10 | . 10 . Fire 45 | . 32 13 Melee . | . . . Ram . | . . . Kick 5 | . 5 . Crush . | . . . Escape Stasis . | . . . Rewire . | . . . Trap . | . . . Miscellaneous . | . . . Route ------- -11/Junkyard -10/Materials (discovered 4 exits: *Mat x3 / *Min) -10/Mines History --------- Turn | Location | Event 5 | -11/Junkyard | Discovered new exit (range 15) 79 | -11/Junkyard | Entered Materials 303 | -10/Materials | Discovered new exit (range 8) 304 | -10/Materials | Build established: Mutant 403 | -10/Materials | Discovered new exit (range 8) 623 | -10/Materials | Discovered new exit (range 7) 896 | -10/Materials | Identified exit to Materials 966 | -10/Materials | Discovered exit to Materials (range 10) 1116 | -10/Materials | Identified exit to Mines 1118 | -10/Materials | Entered Mines 1155 | -10/Mines | Assembled infested the area 1160 | -10/Mines | Assisted by a Guerilla fighting off Assembled 1210 | -10/Mines | Core integrity fell below 50% 1218 | -10/Mines | Core integrity fell below 20% 1231 | -10/Mines | Destroyed by as-87538 with Assembled Rifle Last Messages --------------- 01163_ S-10 Pest destroyed. 01164_ HV Slug penetrates Wall. 01170_ HV Slug penetrates S-10 Pest. 01170_ S-10 Pest destroyed. 01172_ HV Slug penetrates Wall. 01172_ S-10 Pest destroyed. 01179_ Acquired 14 matter. 01181_ HV Slug penetrates Core Extractor. 01181_ Core Extractor disabled. 01181_ Acquired 2 matter. 01186_ Acquired 9 matter. 01188_ T-07 Excavator destroyed. 01202_ Ion Engine destroyed. 01204_ Shotgun destroyed. 01205_ Aluminum Leg destroyed. 01208_ Destroyed Asb. Hover Unit. 01210_ as-28810 destroyed. 01210_ as-62283 destroyed. 01211_ Shotgun destroyed. 01215_ Aluminum Leg destroyed. Map ----- +----------------------------------------------------+ | ??????????????????????????????? | | ??????????????????????????????? | | ??????????????????????????????? | | ??????????????????????????????? | | ??????????????????????????????? | | ??????????????????????????????? | | ??????????????????????????????? | | ??????????????????????????????? | | ??????????????????????????????? | | ??????????????????????????????? | | ??????????????????????????????? | | ??????????????????????????????? | | ??????????????????????????????? | | ???#####??????????????????????? | | ???# ###????????????????????? | | ??? ##???????????????????? | | ??? ##??????????????????? | | ???# #??????????????????? | | ???# #??????????????????? | | ??## ???????????????????? | | ??# ????????????????????? | | ??# #????????????????????? | | ??# ##???????????????????? | | ??# ## ##??????????????? | | ??# a #??????????????? | | ??# @ #??????????????? | | ??# ## a #?????????? | | ?## ##??? a####???????????? | | ?# ##?????? #??????????????? | | ?# #?????????##??????????????? | | ?# #?????????????????????????? | | ?# #?????????????????????????? | | ?# #?????????????????????????? | | ?# #?????????????????????????? | | ?# #?????????????????????????? | | ?# #????????????????#????????? | | ?# #???????????????? #???????? | | ?# #???????????????? ##?????? | | ?# #???????????????? #?????? | | ?# #???????????????? ?###?? | | ?# #???????????????? ?? #?? | | ?# #???????????????? ?? #?? | | ?# #????????????????# ?? #?? | | ?# #????????????????# #?? #?# | | ?# #????????????????# ### ## | | ?# #??????#####??#### ## | | ?# #??##### ####"#" # =% | | ?# #??#""# =%= = | | ?# #### % = = ### | | ?# % #"#"######%###?? | +----------------------------------------------------+ Best States ------------- Heat Dissipation 25 Energy Generation 10 Energy Capacity 250 Matter Stores 300 Matter Capacity 300 Sight Range 16 Terrain Scan Density 10 Evasion (%) 55 Item Schematics ----------------- None Robot Schematics ------------------ None Fabricated ------------ Nothing Alien Tech Used ----------------- None Achievements -------------- None Challenges ------------ None Game ------ Seed CoilAntimissileDerivative Manual? 0 Play Time 00:10:19 Cumulative 25.6 hours Start 2024.02.09 @ 06:53:03 End 2024.02.09 @ 07:02:14 Sessions 1 Manual Loads 0 Difficulty Rogue Special Mode None Game No. 39 Rogue 39 Adventurer 0 Explorer 0 Win Type - Total 0 Types 0/0/0/0/0/0/0/0/0 Lore% 19 Gallery% 30 Achievement% 24 Wizard Run 0 Options --------- ASCII 0 Keyboard 1 Movement Numpad Keybinds 0 Fullscreen 2 Font 18/Smallcaps Map View 76x50 Tactical HUD 1 Map Filters NONE Filters NONE Steam 1 RUN: b5dd082a-1e70-4634-8e61-e63d9b72c2f1